[Event "XII Paracin Festival 2019"]
[Site "Paracin"]
[Date "2019.07.06"]
[Round "2.10"]
[White "Gan-Od, Sereenen"]
[Black "Stankovic, Milos"]
[Result "1/2-1/2"]
[ECO "B13"]
[WhiteElo "2294"]
[BlackElo "2462"]
[Annotator "ChessBase"]
[PlyCount "129"]
[EventDate "2019.07.05"]
[EventType "swiss"]
[EventCountry "SRB"]
[SourceTitle "playchess.com"]
[Source "ChessBase"]
[SourceQuality "1"]
[TimeControl "5400+30"]

1. e4 {[%emt 0:00:00]} c6 {[%emt 0:00:59]} 2. d4 {[%emt 0:00:02]} d5 {[%emt 0:00:26]} 3. exd5 {[%emt 0:00:08]} cxd5 {[%emt 0:00:25]} 4. c4 {[%emt 0:00:03]} Nf6 {[%emt 0:00:35]} 5. Nc3 {[%emt 0:00:07]} Nc6 {[%emt 0:00:30]} 6. Nf3 {[%emt 0:00:06]} Be6 {[%emt 0:00:46]} 7. c5 {[%emt 0:09:15]} g6 {[%emt 0:06:31]} 8. Bb5 {[%emt 0:05:45]} Bg7 {[%emt 0:00:32]} 9. O-O {[%emt 0:02:08]} O-O {[%emt 0:02:05]} 10. h3 {[%emt 0:00:31]} Qc7 {[%emt 0:14:22]} 11. Re1 {[%emt 0:01:35]} Bf5 {[%emt 0:04:45]} 12. Bg5 {[%emt 0:05:33]} Rfd8 {[%emt 0:02:11]} 13. Rc1 {[%emt 0:23:30]} Ne4 {[%emt 0:05:36]} 14. Be3 {[%emt 0:01:56]} Nxc3 {[%emt 0:09:19]} 15. bxc3 {[%emt 0:01:54]} Na5 {[%emt 0:02:37]} 16. Qd2 {[%emt 0:02:26]} Nc4 {[%emt 0:06:08]} 17. Bxc4 {[%emt 0:00:24]} dxc4 {[%emt 0:00:11]} 18. Bf4 {[%emt 0:00:27]} Qd7 {[%emt 0:00:37]} 19. Qe2 {[%emt 0:00:30]} b6 {[%emt 0:05:02]} 20. Qxc4 {[%emt 0:05:21]} Be6 {[%emt 0:08:46]} 21. Qb4 {[%emt 0:01:21]} bxc5 {[%emt 0:05:02]} 22. Qxc5 {[%emt 0:00:21]} Bf6 {[%emt 0:01:50]} 23. Ne5 {[%emt 0:05:34]} Qa4 {[%emt 0:03:02]} 24. Ng4 {[%emt 0:02:31]} Bxg4 {[%emt 0:01:21]} 25. hxg4 {[%emt 0:04:57]} Rac8 {[%emt 0:00:37]} 26. Qb4 {[%emt 0:00:33]} Qxb4 {[%emt 0:00:59]} 27. cxb4 {[%emt 0:00:01]} Rxc1 {[%emt 0:00:22]} 28. Rxc1 {[%emt 0:02:46]} Bxd4 {[%emt 0:00:15]} 29. Rc7 {[%emt 0:01:18]} Kf8 {[%emt 0:00:21]} 30. a4 {[%emt 0:02:50]} Bb6 {[%emt 0:01:02]} 31. Rc1 {[%emt 0:00:49]} Ke8 {[%emt 0:03:56]} 32. a5 {[%emt 0:01:10]} Bd4 {[%emt 0:00:07]} 33. Rc7 {[%emt 0:03:41]} Rd5 {[%emt 0:04:49]} 34. Rb7 {[%emt 0:00:34]} a6 {[%emt 0:01:36]} 35. Kf1 {[%emt 0:02:13]} Rd7 {[%emt 0:03:07]} 36. Rb8+ {[%emt 0:00:47]} Rd8 {[%emt 0:00:08]} 37. Rb7 {[%emt 0:00:02]} Rd7 {[%emt 0:00:14]} 38. Bc7 {[%emt 0:00:39]} e5 {[%emt 0:01:21]} 39. b5 {[%emt 0:03:20]} axb5 {[%emt 0:00:09]} 40. a6 {[%emt 0:00:01]} b4 {[%emt 0:02:03]} 41. a7 {[%emt 0:01:11]} Bxa7 {[%emt 0:00:14]} 42. Rxa7 {[%emt 0:00:02]} Ke7 {[%emt 0:00:16]} 43. Bb6 {[%emt 0:00:53]} Rxa7 {[%emt 0:00:27]} 44. Bxa7 {[%emt 0:00:04]} b3 {[%emt 0:00:05]} 45. Bc5+ {[%emt 0:00:06]} Kf6 {[%emt 0:00:09]} 46. Ba3 {[%emt 0:00:08]} Kg5 {[%emt 0:00:05]} 47. f3 {[%emt 0:01:06]} e4 {[%emt 0:00:35]} 48. Bc1+ {[%emt 0:01:17]} Kh4 {[%emt 0:00:26]} 49. g5 {[%emt 0:00:59]} exf3 {[%emt 0:00:19]} 50. gxf3 {[%emt 0:00:10]} b2 {[%emt 0:00:20]} 51. Bxb2 {[%emt 0:00:07]} Kxg5 {[%emt 0:00:06]} 52. Kf2 {[%emt 0:00:39]} Kf5 {[%emt 0:00:48]} 53. Bc3 {[%emt 0:02:15]} g5 {[%emt 0:00:11]} 54. Ke3 {[%emt 0:00:59]} h5 {[%emt 0:00:08]} 55. Be1 {[%emt 0:00:07]} Ke6 {[%emt 0:00:26]} 56. Ke4 {[%emt 0:00:15]} f5+ {[%emt 0:00:08]} 57. Ke3 {[%emt 0:00:52]} f4+ {[%emt 0:00:49]} 58. Kf2 {[%emt 0:00:16]} Kf5 {[%emt 0:00:19]} 59. Kg2 {[%emt 0:00:56]} g4 {[%emt 0:00:08]} 60. Bh4 {[%emt 0:00:07]} Ke5 {[%emt 0:00:19]} 61. Bg5 {[%emt 0:00:17]} Kf5 {[%emt 0:00:06]} 62. Bd8 {[%emt 0:00:19]} Ke5 {[%emt 0:00:11]} 63. Bc7+ {[%emt 0:00:11]} Kf5 {[%emt 0:00:06]} 64. Bd8 {[%emt 0:00:44]} Ke5 {[%emt 0:00:07]} 65. Bc7+ {[%emt 0:00:05]} 1/2-1/2

[Event "XII Paracin Festival 2019"]
[Site "Paracin"]
[Date "2019.07.06"]
[Round "2.11"]
[White "Song, Raymond"]
[Black "Stefansson, Vignir Vatnar"]
[Result "1-0"]
[ECO "B31"]
[WhiteElo "2456"]
[BlackElo "2293"]
[Annotator "ChessBase"]
[PlyCount "95"]
[EventDate "2019.07.05"]
[EventType "swiss"]
[EventCountry "SRB"]
[SourceTitle "playchess.com"]
[Source "ChessBase"]
[SourceQuality "1"]
[TimeControl "5400+30"]

1. e4 {[%emt 0:00:00]} c5 {[%emt 0:00:00]} 2. Nf3 {[%emt 0:00:00]} Nc6 {[%emt 0:00:00]} 3. Bb5 {[%emt 0:00:00]} g6 {[%emt 0:00:00]} 4. Bxc6 {[%emt 0:00:00]} dxc6 {[%emt 0:00:06]} 5. d3 {[%emt 0:00:00]} Bg7 {[%emt 0:00:38]} 6. h3 {[%emt 0:00:12]} Nf6 {[%emt 0:00:17]} 7. Nc3 {[%emt 0:00:06]} O-O {[%emt 0:00:40]} 8. Be3 {[%emt 0:00:09]} b6 {[%emt 0:00:06]} 9. Qd2 {[%emt 0:00:09]} e5 {[%emt 0:00:57]} 10. Bh6 {[%emt 0:00:17]} Qe7 {[%emt 0:00:52]} 11. Bxg7 {[%emt 0:00:47]} Kxg7 {[%emt 0:00:08]} 12. O-O {[%emt 0:00:24]} Qc7 {[%emt 0:19:59]} 13. Ne2 {[%emt 0:02:38]} c4 {[%emt 0:06:41]} 14. dxc4 {[%emt 0:02:06]} Nxe4 {[%emt 0:02:52]} 15. Qe3 {[%emt 0:01:48]} Nc5 {[%emt 0:00:16]} 16. Ng3 {[%emt 0:06:37]} f6 {[%emt 0:03:53]} 17. Rfe1 {[%emt 0:00:22]} Be6 {[%emt 0:04:57]} 18. Qc3 {[%emt 0:00:53]} a5 {[%emt 0:13:07]} 19. Re3 {[%emt 0:03:10]} Na4 {[%emt 0:03:07]} 20. Qa3 {[%emt 0:00:31]} Nc5 {[%emt 0:00:12]} 21. b3 {[%emt 0:03:20]} Rad8 {[%emt 0:03:12]} 22. Rae1 {[%emt 0:00:41]} Bf7 {[%emt 0:02:07]} 23. Qb2 {[%emt 0:01:24]} Rfe8 {[%emt 0:02:25]} 24. h4 {[%emt 0:00:47]} h5 {[%emt 0:02:58]} 25. Qc3 {[%emt 0:02:59]} Qd7 {[%emt 0:00:25]} 26. a3 {[%emt 0:01:36]} Qe7 {[%emt 0:08:52]} 27. Qa1 {[%emt 0:00:55]} Kh7 {[%emt 0:03:14]} 28. Qc3 {[%emt 0:07:43]} Nb7 {[%emt 0:03:13]} 29. Qb2 {[%emt 0:08:08]} Kg7 {[%emt 0:00:55]} 30. Ng5 {[%emt 0:02:37]} Qd7 {[%emt 0:02:03]} 31. N5e4 {[%emt 0:00:48]} Qe7 {[%emt 0:01:33]} 32. Rf3 {[%emt 0:01:00]} Rd6 {[%emt 0:01:10]} 33. Nxd6 {[%emt 0:00:35]} Nxd6 {[%emt 0:00:01]} 34. Rd3 {[%emt 0:00:44]} Nb7 {[%emt 0:00:04]} 35. Qc1 {[%emt 0:02:14]} Nc5 {[%emt 0:00:04]} 36. Rdd1 {[%emt 0:00:06]} Ne6 {[%emt 0:00:08]} 37. Ne4 {[%emt 0:00:19]} Nd4 {[%emt 0:00:22]} 38. a4 {[%emt 0:01:44]} Be6 {[%emt 0:00:10]} 39. Qb2 {[%emt 0:01:21]} Bf5 {[%emt 0:00:06]} 40. c3 {[%emt 0:00:21]} Ne6 {[%emt 0:00:11]} 41. Nd6 {[%emt 0:00:09]} Rd8 {[%emt 0:00:01]} 42. Nxf5+ {[%emt 0:00:07]} gxf5 {[%emt 0:00:03]} 43. Qe2 {[%emt 0:00:44]} Kg6 {[%emt 0:00:40]} 44. Rxd8 {[%emt 0:00:14]} Qxd8 {[%emt 0:00:01]} 45. Rd1 {[%emt 0:00:13]} Qe7 {[%emt 0:00:06]} 46. Qf3 {[%emt 0:00:16]} e4 {[%emt 0:00:11]} 47. Qg3+ {[%emt 0:00:05]} Kf7 {[%emt 0:00:03]} 48. Qb8 {[%emt 0:01:00]} 1-0

[Event "XII Paracin Festival 2019"]
[Site "Paracin"]
[Date "2019.07.06"]
[Round "2.12"]
[White "Raghavi, N.."]
[Black "Pikula, Dejan"]
[Result "0-1"]
[ECO "A46"]
[WhiteElo "2290"]
[BlackElo "2447"]
[Annotator "NA"]
[PlyCount "100"]
[EventDate "2019.07.05"]
[EventType "swiss"]
[EventCountry "SRB"]
[SourceTitle "playchess.com"]
[Source "ChessBase"]
[SourceQuality "1"]
[TimeControl "5400+30"]

1. d4 {[%emt 0:00:31]} Nf6 {[%emt 0:02:52]} 2. Nf3 {[%emt 0:02:03]} e6 {[%emt 0:01:36]} 3. Bf4 {[%emt 0:00:16]} c5 {[%emt 0:00:12]} 4. c3 {[%emt 0:00:50]} b6 {[%emt 0:00:10]} 5. e3 {[%emt 0:00:20]} Be7 {[%emt 0:00:10]} 6. h3 {[%emt 0:00:19]} O-O {[%emt 0:00:15]} 7. Nbd2 {[%emt 0:02:26]} cxd4 {[%emt 0:00:09]} 8. cxd4 {[%emt 0:00:27]} d6 {[%emt 0:03:43]} 9. Bd3 {[%emt 0:01:42]} Ba6 {[%emt 0:00:10]} 10. Nb1 {[%emt 0:09:04]} Qc8 {[%emt 0:10:08]} 11. Nc3 {[%emt 0:02:42]} Bxd3 {[%emt 0:00:14]} 12. Qxd3 {[%emt 0:00:09]} a6 {[%emt 0:00:21]} 13. O-O {[%emt 0:06:13]} Qb7 {[%emt 0:00:10]} 14. e4 {[%emt 0:02:24]} Nbd7 {[%emt 0:07:54]} 15. Rfe1 {[%emt 0:04:21]} h6 {[%emt 0:06:01]} 16. Rad1 {[%emt 0:04:10]} Rfd8 {[%emt 0:00:25]} 17. d5 {[%emt 0:03:49]} e5 {[%emt 0:00:16]} 18. Be3 {[%emt 0:04:14]} b5 {[%emt 0:00:33]} 19. Nd2 {[%emt 0:05:08]} Rdc8 {[%emt 0:00:22]} 20. Ne2 {[%emt 0:02:30]} Bd8 {[%emt 0:13:35]} 21. Ng3 {[%emt 0:05:04]} Nc5 {[%emt 0:00:08]} 22. Bxc5 {[%emt 0:01:57]} Rxc5 {[%emt 0:00:05]} 23. Nf5 Ne8 24. Nb3 {[%emt 0:08:50]} Rcc8 {[%emt 0:01:21]} 25. Rc1 {[%emt 0:02:14]} a5 {[%emt 0:04:50]} 26. Rxc8 {[%emt 0:05:36]} Rxc8 {[%emt 0:00:05]} 27. Rc1 {[%emt 0:00:23]} Rxc1+ {[%emt 0:05:54]} 28. Nxc1 {[%emt 0:02:16]} h5 {[%emt 0:03:47]} 29. Ne2 {[%emt 0:00:44]} g6 {[%emt 0:00:19]} 30. Ne3 {[%emt 0:04:38]} Bg5 {[%emt 0:01:24]} 31. Nc3 {[%emt 0:01:24]} Nc7 {[%emt 0:03:41]} 32. Nc2 {[%emt 0:01:23]} Bc1 {[%emt 0:09:24]} 33. b4 {[%emt 0:00:07]} axb4 {[%emt 0:00:07]} 34. Nxb4 {[%emt 0:02:09]} Ba3 {[%emt 0:01:08]} 35. Nc6 {[%emt 0:02:00]} Bc5 {[%emt 0:01:59]} 36. Qf3 {[%emt 0:00:53]} Ne8 {[%emt 0:02:15]} 37. Qe2 {[%emt 0:03:17]} Nf6 {[%emt 0:00:45]} 38. Kf1 b4 39. Na4 {[%emt 0:00:53]} Nxe4 {[%emt 0:01:07]} 40. Qxe4 {[%emt 0:04:37]} Qa6+ {[%emt 0:00:34]} 41. Ke1 {[%emt 0:00:07]} Qxa4 {[%emt 0:00:13]} 42. Qc4 {[%emt 0:00:09]} Qa3 {[%emt 0:01:26]} 43. Nxe5 b3 {[%emt 0:00:28]} 44. Qxb3 {[%emt 0:05:05]} Qxb3 {[%emt 0:00:51]} 45. axb3 {[%emt 0:00:02]} dxe5 {[%emt 0:00:07]} 46. f3 {[%emt 0:00:03]} Kf8 {[%emt 0:00:05]} 47. Kd2 {[%emt 0:00:05]} Ke7 {[%emt 0:00:04]} 48. Kd3 {[%emt 0:00:05]} Kd6 {[%emt 0:00:04]} 49. Kc4 {[%emt 0:00:00]} h4 {[%emt 0:00:00]} 50. b4 Bg1 0-1

[Event "XII Paracin Festival 2019"]
[Site "Paracin"]
[Date "2019.07.06"]
[Round "2.13"]
[White "Cabarkapa, Novak"]
[Black "Martic, Zlatko"]
[Result "1-0"]
[ECO "A01"]
[WhiteElo "2444"]
[BlackElo "2283"]
[Annotator "NA"]
[PlyCount "95"]
[EventDate "2019.07.05"]
[EventType "swiss"]
[EventCountry "SRB"]
[SourceTitle "playchess.com"]
[Source "ChessBase"]
[SourceQuality "1"]
[TimeControl "5400+30"]

1. b3 {[%emt 0:00:00]} e5 {[%emt 0:02:54]} 2. Bb2 {[%emt 0:00:00]} Nc6 {[%emt 0:00:11]} 3. Nf3 {[%emt 0:00:00]} e4 {[%emt 0:00:56]} 4. Nd4 {[%emt 0:00:00]} Nxd4 {[%emt 0:00:43]} 5. Bxd4 {[%emt 0:00:00]} d5 {[%emt 0:00:43]} 6. e3 {[%emt 0:00:10]} Ne7 {[%emt 0:01:55]} 7. Bb2 {[%emt 0:03:38]} Nc6 {[%emt 0:00:44]} 8. Nc3 {[%emt 0:05:13]} Bb4 {[%emt 0:08:00]} 9. a3 {[%emt 0:01:54]} Bxc3 {[%emt 0:01:02]} 10. dxc3 {[%emt 0:04:29]} Be6 {[%emt 0:03:33]} 11. Qh5 {[%emt 0:08:23]} Qf6 {[%emt 0:01:31]} 12. Bb5 {[%emt 0:06:09]} O-O-O {[%emt 0:01:33]} 13. Bxc6 {[%emt 0:01:49]} bxc6 {[%emt 0:00:07]} 14. Qe2 {[%emt 0:00:38]} Kb7 {[%emt 0:03:03]} 15. O-O-O {[%emt 0:07:20]} Qg6 {[%emt 0:00:15]} 16. Rhg1 {[%emt 0:00:54]} Rhe8 {[%emt 0:02:46]} 17. h3 h5 {[%emt 0:00:42]} 18. a4 {[%emt 0:03:54]} f5 {[%emt 0:04:19]} 19. a5 {[%emt 0:03:51]} a6 {[%emt 0:02:52]} 20. Ba3 {[%emt 0:01:59]} Bc8 {[%emt 0:06:24]} 21. Bc5 {[%emt 0:03:05]} Qf7 {[%emt 0:03:20]} 22. Kb2 {[%emt 0:03:48]} g5 {[%emt 0:00:24]} 23. Qd2 {[%emt 0:02:22]} f4 {[%emt 0:02:16]} 24. Qd4 {[%emt 0:00:39]} Qe6 {[%emt 0:05:33]} 25. h4 {[%emt 0:01:25]} fxe3 {[%emt 0:03:29]} 26. Qb4+ {[%emt 0:00:28]} Ka8 {[%emt 0:00:31]} 27. Bxe3 {[%emt 0:00:13]} Qd6 {[%emt 0:01:10]} 28. Bc5 {[%emt 0:01:16]} Qg6 {[%emt 0:00:35]} 29. Bd4 {[%emt 0:07:44]} Qd6 {[%emt 0:00:22]} 30. hxg5 {[%emt 0:00:11]} Qxb4 {[%emt 0:00:30]} 31. cxb4 {[%emt 0:00:05]} Bf5 {[%emt 0:02:09]} 32. Rh1 {[%emt 0:06:01]} Bg6 {[%emt 0:02:59]} 33. Kc3 {[%emt 0:02:59]} Kb7 {[%emt 0:01:49]} 34. Kd2 Kc8 {[%emt 0:00:30]} 35. Ke3 Kd7 {[%emt 0:00:30]} 36. b5 axb5 {[%emt 0:00:30]} 37. a6 Rf8 {[%emt 0:00:30]} 38. c4 Ra8 {[%emt 0:00:30]} 39. Ra1 Rf5 {[%emt 0:00:30]} 40. cxb5 cxb5 {[%emt 0:00:30]} 41. Rhc1 Rxg5 {[%emt 0:00:30]} 42. a7 Be8 {[%emt 0:00:30]} 43. Ra6 Kc8 {[%emt 0:00:30]} 44. Rh6 Rxg2 {[%emt 0:00:30]} 45. Rh7 c6 {[%emt 0:00:30]} 46. Be5 Bd7 {[%emt 0:00:30]} 47. Rh8+ Kb7 {[%emt 0:00:30]} 48. Rb8+ 1-0

[Event "XII Paracin Festival 2019"]
[Site "Paracin"]
[Date "2019.07.06"]
[Round "2.14"]
[White "Pastar, Slaven"]
[Black "Froewis, Georg"]
[Result "1/2-1/2"]
[ECO "D31"]
[WhiteElo "2276"]
[BlackElo "2434"]
[Annotator "NA"]
[PlyCount "48"]
[EventDate "2019.07.05"]
[EventType "swiss"]
[EventCountry "SRB"]
[SourceTitle "playchess.com"]
[Source "ChessBase"]
[SourceQuality "1"]
[TimeControl "5400+30"]

1. d4 {[%emt 0:01:20]} d5 {[%emt 0:00:00]} 2. c4 {[%emt 0:00:15]} e6 {[%emt 0:00:00]} 3. Nc3 {[%emt 0:00:42]} Bb4 {[%emt 0:00:11]} 4. e3 {[%emt 0:04:31]} Ne7 {[%emt 0:00:32]} 5. Bd3 {[%emt 0:01:12]} c5 {[%emt 0:00:24]} 6. Nge2 {[%emt 0:03:30]} cxd4 {[%emt 0:01:00]} 7. exd4 {[%emt 0:00:50]} dxc4 {[%emt 0:04:30]} 8. Bxc4 {[%emt 0:00:12]} O-O {[%emt 0:00:32]} 9. O-O {[%emt 0:00:48]} Nbc6 {[%emt 0:00:03]} 10. a3 {[%emt 0:09:50]} Bd6 {[%emt 0:00:47]} 11. Bg5 {[%emt 0:06:20]} h6 {[%emt 0:07:54]} 12. Bh4 {[%emt 0:00:54]} Qb6 {[%emt 0:00:25]} 13. d5 {[%emt 0:07:15]} Ne5 {[%emt 0:03:32]} 14. Ba2 {[%emt 0:03:16]} Nf5 {[%emt 0:04:35]} 15. Bg3 {[%emt 0:00:56]} Nxg3 {[%emt 0:07:13]} 16. Nxg3 {[%emt 0:01:29]} exd5 {[%emt 0:10:45]} 17. Nxd5 {[%emt 0:00:35]} Qd8 {[%emt 0:00:04]} 18. Ne4 {[%emt 0:02:17]} Bb8 {[%emt 0:03:42]} 19. f4 {[%emt 0:02:36]} Nc6 {[%emt 0:03:52]} 20. Qh5 {[%emt 0:03:44]} Be6 {[%emt 0:03:26]} 21. Ndf6+ {[%emt 0:18:27]} Kh8 {[%emt 0:00:42]} 22. Bxe6 fxe6 {[%emt 0:00:28]} 23. Rad1 {[%emt 0:02:28]} Qb6+ {[%emt 0:12:35]} 24. Rf2 {[%emt 0:03:08]} Qa5 {[%emt 0:03:00]} 1/2-1/2

[Event "XII Paracin Festival 2019"]
[Site "Paracin"]
[Date "2019.07.06"]
[Round "2.15"]
[White "Radovanovic, Nikola"]
[Black "Ivanovic, Marko"]
[Result "0-1"]
[ECO "E70"]
[WhiteElo "2431"]
[BlackElo "2267"]
[Annotator "NA"]
[PlyCount "88"]
[EventDate "2019.07.05"]
[EventType "swiss"]
[EventCountry "SRB"]
[SourceTitle "playchess.com"]
[Source "ChessBase"]
[SourceQuality "1"]
[TimeControl "5400+30"]

1. d4 {[%emt 0:00:00]} Nf6 {[%emt 0:03:00]} 2. c4 {[%emt 0:00:00]} g6 {[%emt 0:00:09]} 3. Nc3 {[%emt 0:00:00]} Bg7 {[%emt 0:00:03]} 4. e4 {[%emt 0:00:43]} d6 {[%emt 0:00:04]} 5. Bd3 {[%emt 0:05:10]} O-O {[%emt 0:00:15]} 6. Nge2 {[%emt 0:00:06]} e5 {[%emt 0:00:26]} 7. d5 {[%emt 0:00:32]} a5 {[%emt 0:00:49]} 8. O-O {[%emt 0:00:33]} Na6 {[%emt 0:00:07]} 9. f3 {[%emt 0:10:20]} Nc5 {[%emt 0:03:09]} 10. Bc2 {[%emt 0:00:09]} Nh5 {[%emt 0:02:26]} 11. Be3 {[%emt 0:01:25]} Kh8 {[%emt 0:00:56]} 12. Qd2 {[%emt 0:03:56]} f5 {[%emt 0:08:10]} 13. exf5 {[%emt 0:02:21]} gxf5 {[%emt 0:00:10]} 14. f4 {[%emt 0:02:38]} e4 {[%emt 0:00:05]} 15. Nd4 {[%emt 0:13:31]} Bd7 {[%emt 0:07:58]} 16. b3 {[%emt 0:02:48]} Rf6 {[%emt 0:04:52]} 17. a3 {[%emt 0:06:40]} Rh6 {[%emt 0:02:45]} 18. b4 {[%emt 0:00:59]} Na6 {[%emt 0:00:08]} 19. Rab1 {[%emt 0:01:08]} axb4 {[%emt 0:06:56]} 20. axb4 {[%emt 0:00:25]} Qh4 {[%emt 0:00:09]} 21. Qf2 {[%emt 0:01:25]} Qf6 {[%emt 0:00:04]} 22. g4 {[%emt 0:10:26]} Rg6 {[%emt 0:24:35]} 23. g5 {[%emt 0:02:56]} h6 {[%emt 0:00:29]} 24. Qe2 Nxf4 {[%emt 0:00:30]} 25. Rxf4 hxg5 {[%emt 0:00:30]} 26. Rf2 Qe5 {[%emt 0:00:30]} 27. Qh5+ Rh6 {[%emt 0:00:30]} 28. Qxg5 Rh3 {[%emt 0:00:30]} 29. Nde2 Bf6 {[%emt 0:00:30]} 30. Qf4 Rg8+ {[%emt 0:00:30]} 31. Kf1 Qxf4 {[%emt 0:00:30]} 32. Bxf4 e3 {[%emt 0:00:30]} 33. Rg2 Rf3+ {[%emt 0:00:30]} 34. Kg1 Rxg2+ {[%emt 0:00:30]} 35. Kxg2 Rf2+ {[%emt 0:00:30]} 36. Kg1 Bxc3 {[%emt 0:00:30]} 37. Nxc3 Rxf4 {[%emt 0:00:30]} 38. Bd3 Rg4+ {[%emt 0:00:30]} 39. Kf1 Rd4 {[%emt 0:00:30]} 40. Be2 f4 {[%emt 0:00:30]} 41. Kg2 Bf5 {[%emt 0:00:30]} 42. Rb3 Bc2 {[%emt 0:00:30]} 43. Rb2 Rd2 {[%emt 0:00:30]} 44. Kf1 f3 {[%emt 0:00:30]} 0-1

[Event "XII Paracin Festival 2019"]
[Site "Paracin"]
[Date "2019.07.06"]
[Round "2.16"]
[White "Lajthajm, Borko"]
[Black "Tadic, Stefan"]
[Result "1-0"]
[ECO "B22"]
[WhiteElo "2424"]
[BlackElo "2262"]
[Annotator "NA"]
[PlyCount "87"]
[EventDate "2019.07.05"]
[EventType "swiss"]
[EventCountry "SRB"]
[SourceTitle "playchess.com"]
[Source "ChessBase"]
[SourceQuality "1"]
[TimeControl "5400+30"]

1. e4 {[%emt 0:00:00]} c5 {[%emt 0:00:35]} 2. c3 {[%emt 0:00:00]} d5 {[%emt 0:00:12]} 3. exd5 {[%emt 0:00:00]} Qxd5 {[%emt 0:00:07]} 4. Nf3 {[%emt 0:00:00]} Nc6 {[%emt 0:00:07]} 5. Na3 {[%emt 0:00:00]} Bg4 {[%emt 0:00:08]} 6. Be2 {[%emt 0:00:07]} Nf6 {[%emt 0:00:10]} 7. Qa4 {[%emt 0:00:24]} e6 {[%emt 0:06:36]} 8. Nc4 {[%emt 0:00:18]} Rc8 {[%emt 0:11:10]} 9. Ne3 {[%emt 0:00:24]} Qh5 {[%emt 0:00:12]} 10. h3 {[%emt 0:01:56]} Bxf3 {[%emt 0:02:09]} 11. Bxf3 {[%emt 0:00:13]} Qe5 {[%emt 0:01:51]} 12. Bxc6+ {[%emt 0:01:13]} bxc6 {[%emt 0:05:21]} 13. Qxa7 {[%emt 0:00:23]} Bd6 {[%emt 0:01:06]} 14. Qa6 {[%emt 0:00:07]} O-O {[%emt 0:01:01]} 15. Qe2 {[%emt 0:00:08]} Bb8 {[%emt 0:18:34]} 16. Nc4 {[%emt 0:02:06]} Qd5 {[%emt 0:03:41]} 17. O-O {[%emt 0:00:42]} Rcd8 {[%emt 0:01:51]} 18. d3 {[%emt 0:02:01]} Qxd3 {[%emt 0:04:44]} 19. Qxd3 {[%emt 0:01:01]} Rxd3 {[%emt 0:00:06]} 20. Be3 {[%emt 0:00:06]} Ne4 {[%emt 0:10:30]} 21. Rfd1 {[%emt 0:01:48]} Rfd8 {[%emt 0:01:23]} 22. Rxd3 {[%emt 0:00:48]} Rxd3 {[%emt 0:00:03]} 23. Kf1 {[%emt 0:00:44]} f5 {[%emt 0:02:59]} 24. Ke2 {[%emt 0:01:50]} Rd5 {[%emt 0:02:37]} 25. f3 {[%emt 0:02:17]} Ng3+ {[%emt 0:01:40]} 26. Ke1 {[%emt 0:00:10]} Kf7 {[%emt 0:11:52]} 27. a4 {[%emt 0:00:34]} Nh5 {[%emt 0:03:45]} 28. a5 {[%emt 0:00:21]} Ba7 {[%emt 0:00:13]} 29. a6 {[%emt 0:01:22]} f4 {[%emt 0:00:35]} 30. Bf2 {[%emt 0:00:22]} Nf6 {[%emt 0:00:03]} 31. Na5 {[%emt 0:00:10]} Rd6 {[%emt 0:01:15]} 32. Nb7 {[%emt 0:00:14]} Rd7 {[%emt 0:01:58]} 33. Nxc5 {[%emt 0:00:40]} Rd8 {[%emt 0:00:11]} 34. Nd3 {[%emt 0:03:09]} Bxf2+ 35. Kxf2 {[%emt 0:00:32]} Nd7 {[%emt 0:01:42]} 36. a7 {[%emt 0:00:16]} Ra8 {[%emt 0:00:07]} 37. Nxf4 {[%emt 0:00:09]} Ke7 {[%emt 0:01:14]} 38. Ra6 {[%emt 0:00:47]} Kd6 {[%emt 0:00:14]} 39. b4 {[%emt 0:00:11]} e5 {[%emt 0:00:47]} 40. Nd3 {[%emt 0:00:21]} Kc7 {[%emt 0:00:08]} 41. Ke3 {[%emt 0:06:03]} Kb7 {[%emt 0:00:51]} 42. Ra5 {[%emt 0:00:05]} Nb6 {[%emt 0:00:41]} 43. Nxe5 {[%emt 0:01:32]} Re8 {[%emt 0:00:32]} 44. Ke4 {[%emt 0:02:44]} 1-0

[Event "XII Paracin Festival 2019"]
[Site "Paracin"]
[Date "2019.07.06"]
[Round "2.17"]
[White "Nandhidhaa, P V"]
[Black "Wadsworth, Matthew J"]
[Result "1/2-1/2"]
[ECO "B49"]
[WhiteElo "2259"]
[BlackElo "2418"]
[Annotator "NA"]
[PlyCount "86"]
[EventDate "2019.07.05"]
[EventType "swiss"]
[EventCountry "SRB"]
[SourceTitle "playchess.com"]
[Source "ChessBase"]
[SourceQuality "1"]
[TimeControl "5400+30"]

1. e4 {[%emt 0:00:00]} c5 {[%emt 0:02:03]} 2. Nf3 {[%emt 0:00:00]} e6 {[%emt 0:00:12]} 3. d4 {[%emt 0:00:00]} cxd4 {[%emt 0:00:18]} 4. Nxd4 {[%emt 0:00:00]} Nc6 {[%emt 0:00:11]} 5. Nc3 {[%emt 0:00:03]} Qc7 {[%emt 0:00:23]} 6. Be2 {[%emt 0:00:24]} a6 {[%emt 0:00:21]} 7. Be3 {[%emt 0:00:11]} Nf6 {[%emt 0:00:25]} 8. O-O {[%emt 0:00:21]} Bb4 {[%emt 0:00:16]} 9. Nxc6 {[%emt 0:00:24]} bxc6 {[%emt 0:00:47]} 10. Qd4 {[%emt 0:02:40]} c5 {[%emt 0:13:02]} 11. Qc4 {[%emt 0:00:17]} O-O {[%emt 0:03:59]} 12. Na4 {[%emt 0:01:17]} d5 {[%emt 0:02:34]} 13. exd5 {[%emt 0:00:26]} exd5 {[%emt 0:00:06]} 14. Qf4 {[%emt 0:00:05]} Qc6 {[%emt 0:11:12]} 15. c3 {[%emt 0:15:53]} c4 {[%emt 0:05:36]} 16. cxb4 {[%emt 0:02:10]} Qxa4 {[%emt 0:00:02]} 17. Bd4 {[%emt 0:01:13]} Qc6 {[%emt 0:06:27]} 18. Bf3 {[%emt 0:00:10]} Bb7 {[%emt 0:01:22]} 19. Rac1 {[%emt 0:04:26]} Rfe8 {[%emt 0:04:46]} 20. b3 {[%emt 0:04:19]} Ne4 {[%emt 0:00:16]} 21. Rfe1 {[%emt 0:01:40]} c3 {[%emt 0:01:46]} 22. Bxe4 {[%emt 0:02:00]} Rxe4 {[%emt 0:00:06]} 23. Rxe4 {[%emt 0:00:37]} dxe4 {[%emt 0:00:06]} 24. Rxc3 {[%emt 0:00:48]} Qd5 {[%emt 0:01:10]} 25. Qe5 {[%emt 0:01:01]} Qxe5 {[%emt 0:04:43]} 26. Bxe5 {[%emt 0:00:01]} Rd8 {[%emt 0:01:26]} 27. h4 {[%emt 0:01:45]} f6 {[%emt 0:01:06]} 28. Bf4 {[%emt 0:00:15]} Rd4 {[%emt 0:00:59]} 29. Rc4 {[%emt 0:00:55]} Rd1+ {[%emt 0:00:37]} 30. Kh2 {[%emt 0:00:01]} Ra1 {[%emt 0:02:38]} 31. Rc7 {[%emt 0:00:54]} Bd5 {[%emt 0:00:57]} 32. Rc5 {[%emt 0:00:39]} Bb7 {[%emt 0:04:42]} 33. Ra5 {[%emt 0:01:11]} Rb1 {[%emt 0:03:41]} 34. b5 {[%emt 0:01:11]} axb5 35. Rxb5 {[%emt 0:00:05]} Bc6 {[%emt 0:00:11]} 36. Rc5 {[%emt 0:00:46]} Bd7 {[%emt 0:00:53]} 37. Be3 {[%emt 0:00:26]} Rb2 {[%emt 0:02:06]} 38. Ra5 {[%emt 0:00:12]} Kf7 {[%emt 0:01:58]} 39. Kg3 {[%emt 0:00:24]} Ke6 {[%emt 0:01:17]} 40. Kf4 {[%emt 0:01:14]} Bc6 {[%emt 0:00:23]} 41. Bc5 {[%emt 0:04:24]} e3 {[%emt 0:02:04]} 42. Kxe3 {[%emt 0:00:17]} Bxg2 {[%emt 0:00:02]} 43. b4 {[%emt 0:00:24]} g5 {[%emt 0:02:51]} 1/2-1/2